Cogmind - Beta 11.1 @@@ ROGUE MODE // 2022.06.05 @ 21:47:43 Player: Candesce Result: Destroyed by as-82086 with Assembled Blade Performance ------------- Evolutions (0) 0 Regions Visited (2) 400 Robots Destroyed (13) 65 Value Destroyed (384) 384 Prototype IDs (0) 0 Alien Tech Used (0) 0 Bonus (0) 0 TOTAL SCORE: 849 Bonus ------- None Cogmind --------- Core Integrity 0/250 Matter 219/300 Energy 100/100 System Corruption 0% Temperature Cool (7) Movement Core (300) Ox5 Location -10/Mines Parts ------- > --- POWER (1) -------- (None) > --- PROPULSION (2) --- (None) > --- UTILITY (2) ------ Medium Storage Unit > --- WEAPON (2) ------- Improved Light Cannon Improved Light Cannon > --- INVENTORY (10) --- Huge Storage Unit Sensor Array Signal Interpreter Seismic Detector Hacking Suite Hacking Suite Grenade Launcher Peak State ------------ > --- POWER ------------ Ion Engine > --- PROPULSION ------- Aluminum Leg Aluminum Leg > --- UTILITY ---------- Small Storage Unit Seismic Detector > --- WEAPON ----------- Improved Light Cannon Improved Light Cannon > --- INVENTORY -------- Aluminum Leg Signal Interpreter Light Armor Plating Light Armor Plating Light Assault Rifle Improved Light Cannon Improved Light Cannon Grenade Launcher [Rating: 10] Favorites ----------- Power Ion Engine Engine Ion Engine Propulsion Aluminum Leg Leg Aluminum Leg Utility Medium Storage Unit Device Seismic Detector Storage Medium Storage Unit Protection Light Armor Plating Weapon Improved Light Cannon Energy Gun Medium Laser Ballistic Gun Light Assault Rifle Ballistic Cannon Improved Light Cannon Build | -11 -10 -10 ------- Run | Scr Mat Min Slots Evolved . | . . . Power . | . . . Propulsion . | . . . Utility . | . . . Weapon . | . . . Parts Attached 20 | 8 8 4 Power 1 | 1 . . Engine 1 | 1 . . Core . | . . . Reactor . | . . . Propulsion 3 | 2 1 . Treads . | . . . Leg 3 | 2 1 . Wheel . | . . . Hover . | . . . Flight . | . . . Utility 9 | 2 5 2 Device 2 | 1 1 . Storage 4 | 1 3 . Processor . | . . . Hackware . | . . . Protection 3 | . 1 2 Artifact . | . . . Weapon 7 | 3 2 2 Energy Gun 2 | 2 . . Energy Cannon . | . . . Ballistic Gun 1 | 1 . . Ballistic Cannon 4 | . 2 2 Launcher . | . . . Special Weapon . | . . . Impact Weapon . | . . . Slashing Weapon . | . . . Piercing Weapon . | . . . Special Melee Weapon . | . . . Unidentified Prototypes . | . . . Parts Lost 7 | . . 7 Power 1 | . . 1 Propulsion 2 | . . 2 Utility 2 | . . 2 Weapon 2 | . . 2 Highest Loss Streak 7 | . . 7 To Critical Strikes . | . . . Average Slot Usage (%) 98 | . 100 96 Engine 13 | . 14 13 Leg 27 | . 28 26 Device 10 | . 8 12 Storage 14 | . 14 14 Protection 3 | . 5 . Ballistic Cannon 27 | . 27 27 Naked Turns . | . . . Heaviest Build 26 | 14 26 24 Greatest Support 20 | 20 20 20 Greatest Overweight (x) 2 | 2 1 1 Average Overweight (x) . | . . 1 Largest Inventory Capacity 25 | 8 25 10 Average Capacity 9 | 6 9 10 Most Carried 10 | 1 10 10 Average Carried 8 | . 8 9 Final Capacity 10 | 8 10 10 Final Carried 10 | 1 10 7 Class Distribution -------------------- 100% | Mutant Dominant Class ---------------- Mutant | -10/Materials Mutant | -10/Mines Resources | -11 -10 -10 ----------- Run | Scr Mat Min Matter Collected 474 | 282 192 . Remotely . | . . . Salvage Created 335 | 101 178 56 Parts 19 | 4 14 1 Haulers Intercepted . | . . . Recyclers Shooed . | . . . Parts Field Recycled . | . . . Retrieved Matter . | . . . Parts Self-Destructed . | . . . Prevented . | . . . Kills | -11 -10 -10 ------- Run | Scr Mat Min Combat Hostiles Destroyed 9 | . 6 3 Cannons 9 | . 6 3 Classes Destroyed 7 | 2 3 2 Tunneler 1 | 1 . . Recycler 1 | 1 . . Operator 2 | . 2 . Watcher 1 | . 1 . Grunt 6 | . 6 . Demolisher 2 | . . 2 Assembled 1 | . . 1 Best Kill Streak 3 | 2 2 3 Combat Bots Only 3 | . 2 3 Max Kills in Single Turn 1 | 1 1 1 Gunslinging . | . . . Exploded . | . . . Melee . | . . . Uniques/NPCs Destroyed . | . . . Combat | -11 -10 -10 -------- Run | Scr Mat Min Damage Taken 1302 | . 206 1096 Core 267 | . 22 245 Absorbed by Shields . | . . . Core Remaining (%) 100 | 100 . . Volleys Fired 40 | 2 28 10 Largest 2 | 2 1 2 Hottest 78 | 70 39 78 Shots Fired 51 | 4 28 19 Gun 4 | 4 . . Cannon 47 | . 28 19 Launcher . | . . . Special . | . . . Kinetic 49 | 2 28 19 Thermal 2 | 2 . . Explosive . | . . . Electromagnetic . | . . . Robot Hit Streak 7 | 3 6 7 Robot Miss Streak 6 | . 2 6 Penetration Max . | . . . Secondary Targets . | . . . Shots Hit Robots 34 | 3 21 10 Core Hits 19 | 3 10 6 Critical Kills . | . . . Critical Parts Destroyed . | . . . Critical Strikes 3 | . 2 1 Blast 3 | . 2 1 Melee Attacks . | . . . Impact . | . . . Slashing . | . . . Piercing . | . . . Sneak Attacks . | . . . Combat Hostiles . | . . . Follow-up Attacks . | . . . Damage Inflicted 744 | 35 461 248 Guns 35 | 35 . . Cannons 709 | . 461 248 Explosions . | . . . Melee . | . . . Ramming . | . . . Kinetic 719 | 10 461 248 Thermal 25 | 25 . . Explosive . | . . . Electromagnetic . | . . . Impact . | . . . Slashing . | . . . Piercing . | . . . Highest Corruption . | . . . Average Corruption . | . . . Corruption Purged . | . . . Corruption Blocked . | . . . Overload Shots . | . . . Overflow Damage . | . . . Projectiles . | . . . Explosions . | . . . Melee . | . . . Knockbacks 4 | . 3 1 Impact . | . . . Kinetic 4 | . 3 1 Secondary . | . . . Self-Inflicted Damage . | . . . Shots . | . . . Rammed . | . . . Targets Rammed . | . . . Kicked . | . . . Crushed . | . . . Highest Temperature 100 | 40 100 51 Average Temperature 22 | 20 23 20 Received Heat Transfer 153 | . 153 . Siege Activations . | . . . Robots Corrupted . | . . . Combat Hostiles . | . . . Parts Fried . | . . . Impact Corruptions . | . . . Robots Melted . | . . . Combat Hostiles . | . . . Parts Melted . | . . . Heat Transferred 74 | 74 . . Parts Sabotaged . | . . . Parts Stolen . | . . . Parts Stripped . | . . . Power Chain Reactions . | . . . Missiles Intercepted . | . . . Alert | -11 -10 -10 ------- Run | Scr Mat Min Peak Influence 148 | 10 148 40 Initial 21 | . 6 21 Average 29 | 4 36 20 Maximum Alert Level . | . . . Low Security (%) 100 | 100 100 100 Level 1 . | . . . Level 2 . | . . . Level 3 . | . . . Level 4 . | . . . Level 5 . | . . . High Security . | . . . Max Security . | . . . Squads Dispatched 2 | . 2 . Investigation . | . . . Extermination . | . . . Reinforcement 2 | . 2 . Assault . | . . . Garrison . | . . . Intercept . | . . . Searches Triggered . | . . . Construction Impeded . | . . . Haulers Reinforced . | . . . Active Scanning Responses . | . . . Cargo Convoy Interrupts . | . . . Stealth | -11 -10 -10 --------- Run | Scr Mat Min Distress Signals 1 | . 1 . Communications Jammed . | . . . Distress Signals . | . . . Times Spotted 19 | . 12 7 Peak Tracking Total 6 | . 2 6 Tactical Retreats . | . . . Traps | -11 -10 -10 ------- Run | Scr Mat Min Traps Triggered . | . . . Indirectly . | . . . Trap Hack Attempts . | . . . Triggered . | . . . Disarmed . | . . . Reprogrammed . | . . . Reused . | . . . Traps Extracted . | . . . Installed . | . . . Triggered . | . . . Machines | -11 -10 -10 ---------- Run | Scr Mat Min Machines Disabled . | . . . Max in Single Turn . | . . . Machines Sabotaged . | . . . Garrisons Compromised . | . . . Overloaded Fab Kills . | . . . Hacking | -11 -10 -10 --------- Run | Scr Mat Min Machines Accessed 3 | . 3 . Terminals 3 | . 3 . Fabricators . | . . . Repair Stations . | . . . Recycling Units . | . . . Scanalyzers . | . . . Garrison Access . | . . . Total Hacks 6 | . 6 . Successful . | . . . Failed 6 | . 6 . Catastrophic . | . . . Database Lockouts . | . . . Manual 4 | . 4 . Terminals 6 | . 6 . Fabricators . | . . . Repair Stations . | . . . Recycling Units . | . . . Scanalyzers . | . . . Garrison Access . | . . . Terminal Hacks . | . . . Fabricator Hacks . | . . . Repair Station Hacks . | . . . Recycling Unit Hacks . | . . . Scanalyzer . | . . . Garrison Access Hacks . | . . . Unauthorized Hacks . | . . . Terminals . | . . . Fabricators . | . . . Repair Stations . | . . . Recycling Units . | . . . Scanalyzers . | . . . Garrison Access . | . . . Data Cores Recovered . | . . . Used . | . . . Hacking Detections 3 | . 3 . Full Trace Events . | . . . Feedback Events . | . . . Feedback Blocked . | . . . Robot Schematics Acquired . | . . . Robots Built . | . . . Authchips . | . . . Time . | . . . Total Robot Build Rating . | . . . Part Schematics Acquired . | . . . Parts Built . | . . . Authchips . | . . . Time . | . . . Total Part Build Rating . | . . . Parts Repaired . | . . . Time . | . . . Parts Recycled . | . . . Recycled Matter . | . . . Retrieved Matter . | . . . Retrieved Components . | . . . Parts Scanalyzed . | . . . Part Schematics Acquired . | . . . Parts Damaged . | . . . Bothacking | -11 -10 -10 ------------ Run | Scr Mat Min Used RIF Installer . | . . . Robots Hacked . | . . . Non-combat . | . . . Combat . | . . . Robot Hacks Applied . | . . . Relay Couplers Released . | . . . Fabnet Peak Effective % . | . . . Robots Rewired . | . . . Allies Hacked . | . . . Hacks Repelled . | . . . Allies | -11 -10 -10 -------- Run | Scr Mat Min Total Allies . | . . . Largest Group . | . . . Highest-Rated Group . | . . . Highest-Rated Ally . | . . . Total Orders . | . . . Ally Attacks . | . . . Total Damage . | . . . Kills . | . . . Allies Corrupted . | . . . Allies Melted . | . . . Intel | -11 -10 -10 ------- Run | Scr Mat Min Robot Analysis Total . | . . . Derelict Logs Recovered 1 | . . 1 Drone Launches . | . . . Drone Recoveries . | . . . Exploration | -11 -10 -10 ------------- Run | Scr Mat Min Turns Passed 1017 | 83 607 327 Spaces Moved 496 | 55 287 154 Core 5 | 5 . . Treads . | . . . Legs 491 | 50 287 154 Wheels . | . . . Hover . | . . . Flight . | . . . Fastest Speed 50 | 50 120 190 Average Speed 164 | 117 159 190 Slowest Speed 190 | 150 190 190 Overloaded Moves . | . . . Propulsion Burnouts . | . . . Robots Hopped . | . . . Cave-ins Triggered . | . . . Exploration Rate (%) 22 | 3 39 26 Regions Visited 2 Branch Regions 1 Pre-discovered Areas . | . . . Known Exits Taken . | . . . Unknown Exits Taken 2 | 1 1 . Scrap Searched . | . . . Spaces Dug . | . . . Terrain Destroyed 2 | . . 2 Melee . | . . . Projectile 2 | . . 2 AOE . | . . . Terrain Rammed . | . . . Walls Destroyed . | . . . Machines Disabled . | . . . Actions | -11 -10 -10 --------- Run | Scr Mat Min Total 645 | 66 409 170 Wait 69 | 1 66 2 Move 494 | 54 286 154 Hop . | . . . Pick Up 15 | 1 14 . Fast Attach 7 | 7 . . Attach 3 | . . 3 Detach . | . . . Swap 10 | 1 8 1 Drop 7 | . 7 . Fire 40 | 2 28 10 Melee . | . . . Ram . | . . . Kick . | . . . Crush . | . . . Escape Stasis . | . . . Rewire . | . . . Trap . | . . . Miscellaneous . | . . . Route ------- -11/Scrapyard -10/Materials (discovered 3 exits: [*Mat x2] / [*Min]) -10/Mines (discovered 1 exit: [*Mat]) History --------- Turn | Location | Event 21 | -11/Scrapyard | Discovered new exit (range 14) 84 | -11/Scrapyard | Entered Materials 234 | -10/Materials | Discovered new exit (range 16) 315 | -10/Materials | Build established: Mutant 363 | -10/Materials | Discovered new exit (range 15) 474 | -10/Materials | Discovered new exit (range 12) 691 | -10/Materials | Entered Mines 832 | -10/Mines | Discovered new exit (range 14) 957 | -10/Mines | Assembled infested the area 992 | -10/Mines | Core integrity fell below 50% 1012 | -10/Mines | Core integrity fell below 20% 1018 | -10/Mines | Destroyed by as-82086 with Assembled Blade Last Messages --------------- 01003_ The unstable cave ceiling collapses. 01003_ K-01 Serf collects debris. 01003_ D-53 Grenadier destroyed. 01004_ The unstable cave ceiling collapses. 01004_ U-05 Engineer builds a Wall. 01004_ Lgt. Armor Plating destroyed. 01006_ K-01 Serf collects debris. 01006_ D-53 Grenadier knocked back. 01009_ The unstable cave ceiling collapses. 01009_ K-01 Serf destroyed. 01009_ U-05 Engineer builds a Wall. 01010_ The unstable cave ceiling collapses. 01011_ D-53 Grenadier Imp. Light Armor Plating blasted off. 01013_ The unstable cave ceiling collapses. 01014_ D-53 Grenadier destroyed. 01014_ U-05 Engineer lays Concrete. 01015_ The unstable cave ceiling collapses. 01015_ U-05 Engineer lays Concrete. 01016_ U-05 Engineer builds a Wall. 01017_ as-25486 destroyed. Map ----- +----------------------------------------------------+ | | | ????????????????????????????????????????? | | ????????????????????????????????????????? | | ????????????????????????????????????????? | | ?????????##?????????????????????????????? | | ????????? ###???????????????????????????? | | ????????? ##??????????????????????????? | | ???????? #??????????????????????????? | | ???????? ???????????????????????????? | | ???????? ????????????????????????????? | | ???????# #????????????????????????????? | | ?????## ##???????????????????????????? | | ????## #### #??????????????????????? | | ???## #??????????????????????? | | ???# #??????????????????????? | | ??## #??????????????????????????? | | ?## #??????????????????????????? | | ?# """ ???????????????????? | | ?# """ ???????????????????? | | ?# """ #########???????????????????? | | ?# """ #########????????????????????? | | ?# #### ##???????????????????? | | ?## ### ###?????????????????? | | ??# ### ### ##??####??????????? | | ??# #??# ### #### ##?????????? | | ??# #### @ = a #?????????? | | ??# a %!%= a ##????????? | | ??########## #% # a !#????????? | | ???????????## ### ### #????????? | | ????????????## % ## #######?# #????????? | | ?????????????###!u####???????# ????????? | | ???????????????#=%##?????????# ???????? | | ?????????#######% #??????????#####??????? | | ?????????# %###########???????????? | | ?????????# #####%% #???????????? | | ?????????# #???# #???????????? | | ?????????# #???#### ###### #???????????? | | ?????????# #??????# #???????????????????? | | ?????????# #??????# #???????????????????? | | ?????????# #??????# #???????????????????? | | ?????????# #??????# #???????????????????? | | ?????????# #??????# #???????????????????? | | ?????????# ###????# #???????????????????? | | ????????## ##???# #???????????????????? | | ??????### ##??# #???????????????????? | | ?????## #### #???????????????????? | | ????## #???????????????????? | | ????# #####???????????????????? | | ????# ##???????????????????????? | | ????# ##???????????????????????? | +----------------------------------------------------+ Best States ------------- Heat Dissipation 25 Energy Generation 10 Energy Capacity 250 Matter Stores 300 Matter Capacity 300 Sight Range 16 Terrain Scan Density 10 Armor Coverage 150 Evasion (%) 55 Item Schematics ----------------- None Robot Schematics ------------------ None Fabricated ------------ Nothing Alien Tech Used ----------------- None Achievements -------------- None Challenges ------------ None Game ------ Seed SurveybotSuspensionHumpback Manual? 0 Play Time 00:11:27 Cumulative 40.5 hours Start 2022.06.05 @ 21:38:13 End 2022.06.05 @ 21:47:43 Sessions 1 Manual Loads 0 Difficulty Rogue Special Mode None Game No. 113 Rogue 113 Adventurer 0 Explorer 0 Win Type - Total 1 Types 0/0/0/1/0/0/0/0/0 Lore% 54 Gallery% 60 Achievement% 46 Wizard Run 0 Options --------- ASCII 0 Keyboard 0 Movement Numpad Keybinds 0 Fullscreen 1 Font 14/SmallcapsGlow Map View 84x54 Tactical HUD 1 Map Filters NONE Filters NONE Steam 1 RUN: 30860b85-d6df-400f-a0e1-adc98852454f